lending/lending_fUSD_20251124
["ID","MTS","AMOUNT","RATE_DAILY","PERIOD"]
[394832514,1764004261204,-581.208086,0.000264,7]
[394832515,1764004261213,-581.208086,0.000264,7]
[394832516,1764004261222,-581.208086,0.000264,7]
[394832517,1764004261231,-581.208086,0.000264,7]
[394832518,1764004261240,-151.0,0.000264,7]
[394832519,1764004261249,-151.0,0.000264,7]
[394832520,1764004261259,-273.050937,0.000264,7]
[394832521,1764004261268,-151.0,0.000264,7]
[394832522,1764004261277,-198.084101,0.000264,7]
[394832523,1764004261286,-348.124108,0.000264,7]
[394832524,1764004261295,-835.699041,0.000264,7]
[394832525,1764004261304,-348.124108,0.000264,7]
[394832526,1764004261313,-835.699041,0.000264,7]
[394832527,1764004261322,-348.124108,0.000264,7]
[394832528,1764004261331,-835.699041,0.000264,7]
[394832529,1764004261341,-348.124108,0.000264,7]
[394832530,1764004261350,-835.699041,0.000264,7]
[394832531,1764004261359,-520.700402,0.000264,7]
[394832532,1764004261368,-1106.59145,0.000264,7]
[394832533,1764004261377,-520.700402,0.000264,7]
[394832534,1764004261386,-1106.59145,0.000264,7]
[394832535,1764004261398,-151.0,0.000264,7]
[394832536,1764004261407,-520.700402,0.000264,7]
[394832537,1764004261417,-1106.59145,0.000264,7]
[394832538,1764004261426,-520.700402,0.000264,7]
[394832539,1764004261435,-1106.59145,0.000264,7]
[394832540,1764004261444,-151.00001,0.000264,7]
[394832541,1764004261453,-167.825698,0.000264,7]
[394832542,1764004261462,-167.825698,0.000264,7]
[394832543,1764004261472,-376.31477,0.000264,7]
[394832544,1764004261482,-167.825698,0.000264,7]
[394832545,1764004261491,-167.825698,0.000264,7]
[394832546,1764004261500,-376.31477,0.000264,7]
[394832547,1764004261509,-376.31477,0.000264,7]
[394832548,1764004261523,-376.31477,0.000264,7]
[394832549,1764004261532,-151.0,0.000264,7]
[394832550,1764004261542,-151.0,0.000264,7]
[394832551,1764004261552,-151.0,0.000264,7]
[394832552,1764004261562,-209.253644,0.000264,7]
[394832553,1764004261571,-151.0,0.000264,7]
[394832554,1764004261580,-209.253644,0.000264,7]
[394832555,1764004261589,-151.0,0.000264,7]
[394832556,1764004261599,-209.253644,0.000264,7]
[394832557,1764004261608,-209.253644,0.000264,7]
[394832558,1764004261617,-822.0,0.00026465,2]
[394832559,1764004261627,-1601.0,0.00026465,2]
[394832560,1764004261636,-306.867,0.00026465,2]
[394832561,1764004261648,-6499.0,0.00026484,2]
[394832562,1764004261657,-551.04,0.00026575,2]
[394832563,1764004261667,-3461.47,0.000266,7]
[394832564,1764004261676,-307.08,0.00026676,2]
[394832565,1764004261685,-500.0,0.00027,2]
[394832566,1764004261694,-3651.7,0.00027123,2]
[394832567,1764004261703,-150.0,0.00027369,2]
[394832568,1764004261712,-1320.4301677,0.0002739,2]
[394832569,1764004261721,-352.55,0.00027397,2]
[394832570,1764004261730,-514.3,0.00027397,2]
[394832571,1764004261740,-14089.08,0.00027397,2]
[394832572,1764004261749,-151.0,0.00027397,7]
[394832573,1764004261758,-151.0,0.00027397,7]
[394832574,1764004261767,-151.0,0.00027397,7]
[394832575,1764004261776,-500.0,0.00027397,5]
[394832576,1764004261785,-300.0,0.00027397,2]
[394832577,1764004261794,-150.0,0.00027397,5]
[394832578,1764004261804,-818.41,0.000274,2]
[394832579,1764004261813,-156.09,0.000274,7]
[394832580,1764004261824,-339.32,0.000274,7]
[394832581,1764004261843,-5082.93,0.000274,2]
[394832582,1764004261854,-5082.93,0.000274,2]
[394832583,1764004261864,-5082.93,0.000274,2]
[394832584,1764004261873,-5082.93,0.000274,2]
[394832585,1764004261882,-5082.93,0.000274,2]
[394832586,1764004261892,-3941.55,0.00027671,2]
[394832587,1764004261901,-150.32844836,0.00027945,5]
[394832588,1764004261911,-44461.654074,0.00028,2]
[394832589,1764004261921,-157.02439288,0.0002803,2]
[394832590,1764004261930,-152.62072345,0.00028297,120]
[394832591,1764004261940,-6385.0,0.00028453,2]
[394832592,1764004261950,-1080.0,0.000289,2]
[394832593,1764004261959,-1210.76,0.00028959,2]
[394832594,1764004261969,-2423.22,0.00028959,2]
[394832595,1764004261978,-550.0,0.00029,2]
[394832596,1764004261987,-3461.47,0.000291,7]
[394832597,1764004261997,-197.57117919,0.00029457,2]
[394832598,1764004262007,-822.0,0.00029465,2]
[394832599,1764004262016,-1601.0,0.00029465,2]
[394832600,1764004262026,-6499.0,0.00029484,2]
[394832601,1764004262143,-157.02439288,0.00029678,2]
[394832602,1764004262153,-2473.7,0.00029973,2]
[394832603,1764004262163,-20382.27115045,0.0003,2]
[394832604,1764004262172,-1202.75476644,0.0003,2]
[394832605,1764004262181,-339.32,0.0003,7]
[394832606,1764004262191,-782.33164238,0.00030136,120]
[394832607,1764004262200,-352.55,0.00030137,2]
[394832608,1764004262209,-818.41,0.000306,2]
[394832609,1764004262218,-156.09,0.000306,7]
[394832610,1764004262227,-500.71,0.00031,7]
[394832611,1764004262237,-157.02439288,0.00031327,2]
[394832612,1764004262247,-3461.47,0.000317,7]
[394832613,1764004262256,-1211.3,0.00031781,2]
[394832614,1764004262266,-943.75715549,0.00032,120]
[394832615,1764004262274,-822.0,0.00032465,2]
[394832616,1764004262284,-1601.0,0.00032465,2]
[394832617,1764004262293,-6487.0,0.00032484,2]
[394832618,1764004262302,-1080.0,0.000326,2]
[394832619,1764004262311,-339.32,0.000328,30]
[394832620,1764004262320,-521.1036146,0.00032876,2]
[394832621,1764004262329,-322.96721304,0.00032876,2]
[394832622,1764004262338,-500.0,0.00032876,2]
[394832623,1764004262347,-500.0,0.00032876,2]
[394832624,1764004262356,-500.0,0.00032876,2]
[394832625,1764004262365,-500.0,0.00032876,2]
[394832626,1764004262374,-500.0,0.00032876,2]
[394832627,1764004262383,-150.0,0.00032876,2]
[394832628,1764004262393,-352.55,0.00032877,2]
[394832629,1764004262402,-151.0,0.00032877,31]
[394832630,1764004262411,-151.0,0.00032877,31]
[394832631,1764004262420,-151.0,0.00032877,31]
[394832632,1764004262430,-151.0,0.00032877,31]
[394832633,1764004262439,-249.300723,0.00032877,31]
[394832634,1764004262448,-150.0,0.00032877,2]
[394832635,1764004262457,-150.0,0.000329,30]
[394832636,1764004262466,-157.02439288,0.00032976,2]
[394832637,1764004262476,-152.0,0.00033,30]
[394832638,1764004262485,-152.0,0.00033,33]
[394832639,1764004262494,-154.8,0.00033,45]
[394832640,1764004262502,-152.41800308,0.00033,2]
[394832641,1764004262511,-426.8933355,0.00033,3]
[394832642,1764004262526,-150.0,0.00033014,2]
[394832643,1764004262535,-150.0,0.00033151,2]
[394832644,1764004262545,-307.08,0.00033165,2]
[394832645,1764004262554,-156.09,0.000332,14]
[394832646,1764004262565,-150.0,0.00033288,2]
[394832647,1764004262574,-150.0,0.00033425,2]
[394832648,1764004262583,-200.35818123,0.00033562,2]
[394832649,1764004262595,-339.32,0.000339,30]
[394832650,1764004262603,-35623.28699323,0.0003413,10]
[394832651,1764004262613,-4635.01645803,0.000342,7]
[394832652,1764004262622,-818.41,0.000345,2]
[394832653,1764004262631,-206.77,0.000345,30]
[394832654,1764004262641,-157.02439289,0.00034625,2]
[394832655,1764004262653,-2238.08,0.00034649,2]
[394832656,1764004262662,-3605.94,0.00034649,30]
[394832657,1764004262671,-150.0,0.00034849,2]
[394832658,1764004262680,-551.17,0.00034849,2]
[394832659,1764004262689,-169.75,0.00034849,2]
[394832660,1764004262699,-150.0,0.00034849,2]
[394832661,1764004262708,-417.48,0.00034849,2]
[394832662,1764004262718,-150.0,0.00034849,2]
[394832663,1764004262727,-177.64,0.00034849,2]
[394832664,1764004262736,-417.48,0.00034849,2]
[394832665,1764004262746,-150.0,0.00034849,2]
[394832666,1764004262755,-551.17,0.00034849,2]
[394832667,1764004262764,-177.64,0.00034849,2]
[394832668,1764004262773,-169.75,0.00034849,2]
[394832669,1764004262782,-150.0,0.00034849,2]
[394832670,1764004262791,-150.0,0.00034849,2]
[394832671,1764004262800,-150.0,0.00034849,2]
[394832672,1764004262809,-169.75,0.00034849,2]
[394832673,1764004262818,-551.17,0.00034849,2]
[394832674,1764004262827,-177.52,0.00034849,2]
[394832675,1764004262837,-150.0,0.00034849,2]
[394832676,1764004262846,-150.0,0.00034849,2]
[394832677,1764004262855,-417.48,0.00034849,2]
[394832678,1764004262865,-551.17,0.00034849,2]
[394832679,1764004262875,-169.75,0.00034849,2]
[394832680,1764004262885,-150.0,0.00034849,2]
[394832681,1764004262895,-416.84,0.00034849,2]
[394832682,1764004262904,-150.0,0.00034849,2]
[394832683,1764004262914,-150.0,0.00034849,2]
[394832684,1764004262923,-511.944234,0.00035357,120]
[394832685,1764004262932,-211.0,0.0003538,2]
[394832686,1764004262942,-1601.0,0.00035465,2]
[394832687,1764004262951,-151.0,0.00035613,14]
[394832688,1764004262961,-500.0,0.00035616,2]
[394832689,1764004262970,-287.38203,0.00035616,8]
[394832690,1764004262979,-212.183019,0.00035616,8]
[394832691,1764004262989,-2227.210725,0.00035616,8]
[394832692,1764004262998,-1002.209786,0.00035616,8]
[394832693,1764004263007,-2728.730748,0.00035616,8]
[394832694,1764004263016,-1874.302289,0.00035616,8]
[394832695,1764004263026,-500.0,0.00035616,8]
[394832696,1764004263035,-502.40793893,0.00035616,8]
[394832697,1764004263045,-500.0,0.00035616,8]
[394832698,1764004263054,-500.42388726,0.00035616,8]
[394832699,1764004263064,-500.0,0.00035616,8]
[394832700,1764004263073,-501.83279924,0.00035616,8]
[394832701,1764004263083,-500.0,0.00035616,8]
[394832702,1764004263092,-279.04753936,0.00035616,8]
[394832703,1764004263101,-500.0,0.00035616,8]
[394832704,1764004263111,-509.72083634,0.00035616,8]
[394832705,1764004263120,-500.0,0.00035616,8]
[394832706,1764004263129,-500.0,0.00035616,8]
[394832707,1764004263138,-500.0,0.00035616,8]
[394832708,1764004263150,-500.0,0.00035616,8]
[394832709,1764004263159,-500.0,0.00035616,8]
[394832710,1764004263168,-500.87933327,0.00035616,8]
[394832711,1764004263177,-508.50794784,0.00035616,8]
[394832712,1764004263187,-500.0,0.00035616,8]
[394832713,1764004263196,-388.99237797,0.00035616,8]
[394832714,1764004263205,-274.27421248,0.00035616,8]
[394832715,1764004263215,-500.0,0.00035616,8]
[394832716,1764004263224,-500.87241894,0.00035616,8]
[394832717,1764004263233,-500.0,0.00035616,8]
[394832718,1764004263243,-500.0,0.00035616,8]
[394832719,1764004263253,-502.35114276,0.00035616,8]
[394832720,1764004263263,-500.0,0.00035616,8]
[394832721,1764004263272,-500.0,0.00035616,8]
[394832722,1764004263281,-500.0,0.00035616,8]
[394832723,1764004263291,-500.0,0.00035616,8]
[394832724,1764004263302,-500.0,0.00035616,8]
[394832725,1764004263311,-500.0,0.00035616,2]
[394832726,1764004263320,-500.0,0.00035616,8]
[394832727,1764004263329,-501.12655664,0.00035616,8]
[394832728,1764004263339,-511.53338736,0.00035616,8]
[394832729,1764004263348,-508.8176842,0.00035616,8]
[394832730,1764004263357,-617.68090369,0.00035616,8]
[394832731,1764004263366,-500.0,0.00035616,8]
[394832732,1764004263376,-500.0,0.00035616,8]
[394832733,1764004263385,-500.0,0.00035616,8]
[394832734,1764004263395,-500.0,0.00035616,8]
[394832735,1764004263404,-500.0,0.00035616,8]
[394832736,1764004263414,-529.14970891,0.00035616,8]
[394832737,1764004263424,-500.0,0.00035616,8]
[394832738,1764004263434,-500.0,0.00035616,8]
[394832739,1764004263443,-500.0,0.00035616,8]
[394832740,1764004263452,-500.0,0.00035616,8]
[394832741,1764004263461,-500.0,0.00035616,8]
[394832742,1764004263471,-516.27662366,0.00035616,8]
[394832743,1764004263480,-500.0,0.00035616,8]
[394832744,1764004263490,-500.0,0.00035616,8]
[394832745,1764004263499,-500.0,0.00035616,8]
[394832746,1764004263509,-500.0,0.00035616,8]
[394832747,1764004263522,-500.0,0.00035616,8]
[394832748,1764004263531,-500.0,0.00035616,8]
[394832749,1764004263541,-507.46293969,0.00035616,8]
[394832750,1764004263550,-500.0,0.00035616,8]
[394832751,1764004263561,-523.56126303,0.00035616,8]
[394832752,1764004263570,-500.0,0.00035616,8]
[394832753,1764004263579,-500.0,0.00035616,8]
[394832754,1764004263588,-532.97685384,0.00035616,8]
[394832755,1764004263600,-500.0,0.00035616,8]
[394832756,1764004263609,-517.12713343,0.00035616,8]
[394832757,1764004263618,-500.0,0.00035616,8]
[394832758,1764004263627,-500.0,0.00035616,8]
[394832759,1764004263636,-500.0,0.00035616,8]
[394832760,1764004263645,-500.0,0.00035616,8]
[394832761,1764004263655,-500.0,0.00035616,8]
[394832762,1764004263664,-507.70772356,0.00035616,8]
[394832763,1764004263673,-503.40284162,0.00035616,8]
[394832764,1764004263682,-500.0,0.00035616,8]
[394832765,1764004263691,-502.05574799,0.00035616,8]
[394832766,1764004263701,-584.76344741,0.00035616,8]
[394832767,1764004263711,-500.0,0.00035616,8]
[394832768,1764004263719,-500.0,0.00035616,8]
[394832769,1764004263729,-570.6755953,0.00035616,8]
[394832770,1764004263738,-500.0,0.00035616,8]
[394832771,1764004263747,-424.12070666,0.00035616,8]
[394832772,1764004263756,-500.0,0.00035616,8]
[394832773,1764004263766,-500.0,0.00035616,8]
[394832774,1764004263775,-505.89,0.00035616,8]
[394832775,1764004263784,-500.0,0.00035616,8]
[394832776,1764004263793,-254.22864033,0.00035616,8]
[394832777,1764004263802,-151.0,0.00035616,31]
[394832778,1764004263811,-505.9391145,0.00035616,8]
[394832779,1764004263820,-500.0,0.00035616,8]
[394832780,1764004263830,-637.37447998,0.00035616,8]
[394832781,1764004263839,-500.0,0.00035616,8]
[394832782,1764004263848,-500.0,0.00035616,8]
[394832783,1764004263857,-500.0,0.00035616,8]
[394832784,1764004263865,-505.66093305,0.00035616,8]
[394832785,1764004263874,-500.0,0.00035616,8]
[394832786,1764004263883,-533.37705757,0.00035616,8]
[394832787,1764004264025,-500.0,0.00035616,8]
[394832788,1764004264035,-500.0,0.00035616,8]
[394832789,1764004264044,-500.0,0.00035616,8]
[394832790,1764004264054,-500.0,0.00035616,8]
[394832791,1764004264063,-523.14194088,0.00035616,8]
[394832792,1764004264076,-502.96242731,0.00035616,8]
[394832793,1764004264086,-503.26329782,0.00035616,8]
[394832794,1764004264095,-501.57007037,0.00035616,8]
[394832795,1764004264104,-500.0,0.00035616,10]
[394832796,1764004264113,-503.09958124,0.00035616,8]
[394832797,1764004264123,-500.0,0.00035616,8]
[394832798,1764004264132,-428.54884651,0.00035616,8]
[394832799,1764004264141,-500.0,0.00035616,8]
[394832800,1764004264152,-500.0,0.00035616,8]
[394832801,1764004264161,-415.31337388,0.00035616,8]
[394832802,1764004264171,-532.92884552,0.00035616,8]
[394832803,1764004264180,-648.3113451,0.00035616,8]
[394832804,1764004264190,-502.17221496,0.00035616,8]
[394832805,1764004264199,-401.662538,0.00035616,31]
[394832806,1764004264208,-401.662538,0.00035616,31]
[394832807,1764004264217,-500.0,0.00035616,8]
[394832808,1764004264227,-401.662538,0.00035616,31]
[394832809,1764004264237,-401.662538,0.00035616,31]
[394832810,1764004264246,-500.0,0.00035616,8]
[394832811,1764004264255,-507.21896396,0.00035616,8]
[394832812,1764004264265,-508.59203111,0.00035616,8]
[394832813,1764004264278,-500.0,0.00035616,8]
[394832814,1764004264287,-523.59141586,0.00035616,8]
[394832815,1764004264297,-531.90476498,0.00035616,8]
[394832816,1764004264306,-502.82039098,0.00035616,8]
[394832817,1764004264315,-500.0,0.00035616,8]
[394832818,1764004264324,-278.33419635,0.00035616,8]
[394832819,1764004264334,-500.0,0.00035616,8]
[394832820,1764004264343,-151.0,0.00035616,31]
[394832821,1764004264352,-500.0,0.00035616,8]
[394832822,1764004264362,-500.0,0.00035616,8]
[394832823,1764004264371,-500.0,0.00035616,8]
[394832824,1764004264380,-511.43575124,0.00035616,8]
[394832825,1764004264389,-500.0,0.00035616,8]
[394832826,1764004264400,-500.0,0.00035616,8]
[394832827,1764004264409,-500.0,0.00035616,8]
[394832828,1764004264418,-500.0,0.00035616,8]
[394832829,1764004264427,-522.118217,0.00035616,8]
[394832830,1764004264436,-572.85,0.00035616,8]
[394832831,1764004264446,-500.0,0.00035616,8]
[394832832,1764004264455,-500.0,0.00035616,8]
[394832833,1764004264468,-520.78702457,0.00035616,8]
[394832834,1764004264477,-500.0,0.00035616,8]
[394832835,1764004264487,-507.65157587,0.00035616,8]
[394832836,1764004264496,-300.0,0.00035616,8]
[394832837,1764004264505,-505.38797162,0.00035616,8]
[394832838,1764004264516,-501.49618674,0.00035616,8]
[394832839,1764004264527,-500.0,0.00035616,8]
[394832840,1764004264537,-502.83911936,0.00035616,8]
[394832841,1764004264547,-500.0,0.00035616,8]
[394832842,1764004264557,-500.0,0.00035616,8]
[394832843,1764004264566,-500.0,0.00035616,8]
[394832844,1764004264575,-500.0,0.00035616,8]
[394832845,1764004264585,-502.23247173,0.00035616,8]
[394832846,1764004264596,-500.0,0.00035616,8]
[394832847,1764004264605,-500.0,0.00035616,8]
[394832848,1764004264615,-500.0,0.00035616,8]
[394832849,1764004264624,-502.38824299,0.00035616,8]
[394832850,1764004264633,-500.0,0.00035616,8]
[394832851,1764004264642,-500.0,0.00035616,8]
[394832852,1764004264653,-500.0,0.00035616,8]
[394832853,1764004264663,-500.0,0.00035616,8]
[394832854,1764004264672,-159.840423,0.00035616,31]
[394832855,1764004264681,-500.0,0.00035616,8]
[394832856,1764004264690,-500.99315574,0.00035616,8]
[394832857,1764004264700,-500.0,0.00035616,8]
[394832858,1764004264709,-504.18649838,0.00035616,8]
[394832859,1764004264719,-500.0,0.00035616,8]
[394832860,1764004264728,-500.0,0.00035616,8]
[394832861,1764004264737,-500.0,0.00035616,8]
[394832862,1764004264747,-500.0,0.00035616,8]
[394832863,1764004264756,-500.0,0.00035616,8]
[394832864,1764004264765,-500.0,0.00035616,8]
[394832865,1764004264774,-500.0,0.00035616,8]
[394832866,1764004264784,-500.0,0.00035616,8]
[394832867,1764004264794,-500.0,0.00035616,8]
[394832868,1764004264803,-500.0,0.00035616,8]
[394832869,1764004264813,-500.0,0.00035616,8]
[394832870,1764004264822,-500.0,0.00035616,8]
[394832871,1764004264831,-500.0,0.00035616,8]
[394832872,1764004264845,-500.0,0.00035616,8]
[394832873,1764004264854,-438.27040897,0.00035616,8]
[394832874,1764004264864,-500.0,0.00035616,8]
[394832875,1764004264874,-500.0,0.00035616,8]
[394832876,1764004264883,-500.0,0.00035616,8]
[394832877,1764004264892,-500.0,0.00035616,8]
[394832878,1764004264905,-151.0,0.00035616,31]
[394832879,1764004264915,-500.0,0.00035616,8]
[394832880,1764004264924,-500.0,0.00035616,8]
[394832881,1764004264933,-545.21889046,0.00035616,8]
[394832882,1764004264943,-502.36874838,0.00035616,8]
[394832883,1764004264952,-500.0,0.00035616,8]
[394832884,1764004264961,-500.0,0.00035616,8]
[394832885,1764004264971,-500.0,0.00035616,8]
[394832886,1764004264980,-500.0,0.00035616,8]
[394832887,1764004264990,-500.0,0.00035616,8]
[394832888,1764004264999,-500.0,0.00035616,8]
[394832889,1764004265008,-505.9751973,0.00035616,8]
[394832890,1764004265017,-412.49509645,0.00035616,8]
[394832891,1764004265027,-500.0,0.00035616,8]
[394832892,1764004265036,-615.40091606,0.00035616,8]
[394832893,1764004265047,-501.34270138,0.00035616,8]
[394832894,1764004265057,-299.127929,0.00035616,31]
[394832895,1764004265066,-500.0,0.00035616,8]
[394832896,1764004265075,-151.0,0.00035616,31]
[394832897,1764004265085,-500.0,0.00035616,8]
[394832898,1764004265094,-500.0,0.00035616,8]
[394832899,1764004265103,-562.21,0.00035616,8]
[394832900,1764004265112,-502.89156068,0.00035616,8]
[394832901,1764004265121,-500.0,0.00035616,8]
[394832902,1764004265130,-502.00766033,0.00035616,8]
[394832903,1764004265139,-500.0,0.00035616,8]
[394832904,1764004265150,-501.78321674,0.00035616,8]
[394832905,1764004265159,-500.0,0.00035616,8]
[394832906,1764004265168,-500.0,0.00035616,8]
[394832907,1764004265177,-500.0,0.00035616,2]
[394832908,1764004265186,-500.0,0.00035616,8]
[394832909,1764004265195,-500.0,0.00035616,8]
[394832910,1764004265205,-500.0,0.00035616,8]
[394832911,1764004265214,-500.0,0.00035616,8]
[394832912,1764004265223,-500.0,0.00035616,8]
[394832913,1764004265232,-500.0,0.00035616,8]
[394832914,1764004265241,-500.0,0.00035616,8]
[394832915,1764004265251,-500.0,0.00035616,8]
[394832916,1764004265260,-500.0,0.00035616,8]
[394832917,1764004265269,-500.0,0.00035616,8]
[394832918,1764004265278,-500.0,0.00035616,8]
[394832919,1764004265287,-500.0,0.00035616,8]
[394832920,1764004265296,-500.0,0.00035616,8]
[394832921,1764004265306,-500.0,0.00035616,8]
[394832922,1764004265315,-500.0,0.00035616,8]
[394832923,1764004265324,-500.0,0.00035616,8]
[394832924,1764004265334,-500.0,0.00035616,8]
[394832925,1764004265343,-500.0,0.00035616,8]
[394832926,1764004265352,-500.0,0.00035616,8]
[394832927,1764004265362,-500.0,0.00035616,8]
[394832928,1764004265371,-500.0,0.00035616,8]
[394832929,1764004265380,-500.0,0.00035616,8]
[394832930,1764004265389,-500.0,0.00035616,8]
[394832931,1764004265400,-500.0,0.00035616,8]
[394832932,1764004265409,-500.0,0.00035616,8]
[394832933,1764004265418,-533.82519856,0.00035616,8]
[394832934,1764004265427,-500.0,0.00035616,8]
[394832935,1764004265437,-151.0,0.00035616,31]
[394832936,1764004265446,-500.0,0.00035616,8]
[394832937,1764004265456,-500.0,0.00035616,8]
[394832938,1764004265465,-500.0,0.00035616,8]
[394832939,1764004265475,-500.0,0.00035616,8]
[394832940,1764004265484,-400.0,0.00035616,8]
[394832941,1764004265493,-156.728654,0.00035616,31]
[394832942,1764004265502,-500.0,0.00035616,8]
[394832943,1764004265512,-416.94475675,0.00035616,8]
[394832944,1764004265525,-151.0,0.00035616,31]
[394832945,1764004265534,-500.0,0.00035616,8]
[394832946,1764004265544,-513.60394512,0.00035616,8]
[394832947,1764004265553,-500.0,0.00035616,8]
[394832948,1764004265564,-500.0,0.00035616,8]
[394832949,1764004265573,-151.0,0.00035616,31]
[394832950,1764004265583,-500.0,0.00035616,8]
[394832951,1764004265593,-500.0,0.00035616,8]
[394832952,1764004265602,-500.0,0.00035616,8]
[394832953,1764004265611,-500.0,0.00035616,8]
[394832954,1764004265620,-151.0,0.00035616,31]
[394832955,1764004265630,-500.0,0.00035616,8]
[394832956,1764004265639,-500.0,0.00035616,8]
[394832957,1764004265651,-500.0,0.00035616,8]
[394832958,1764004265765,-151.0,0.00035616,31]
[394832959,1764004265775,-500.0,0.00035616,8]
[394832960,1764004265785,-500.0,0.00035616,8]
[394832961,1764004265794,-190.32955459,0.00035616,8]
[394832962,1764004265803,-500.0,0.00035616,8]
[394832963,1764004265812,-500.0,0.00035616,8]
[394832964,1764004265821,-500.0,0.00035616,8]
[394832965,1764004265831,-503.96933013,0.00035616,8]
[394832966,1764004265841,-500.0,0.00035616,8]
[394832967,1764004265850,-527.47304181,0.00035616,8]
[394832968,1764004265859,-500.0,0.00035616,8]
[394832969,1764004265869,-500.0,0.00035616,8]
[394832970,1764004265877,-428.51004448,0.00035616,8]
[394832971,1764004265887,-500.0,0.00035616,8]
[394832972,1764004265898,-500.0,0.00035616,8]
[394832973,1764004265907,-500.0,0.00035616,8]
[394832974,1764004265917,-500.0,0.00035616,8]
[394832975,1764004265927,-500.0,0.00035616,8]
[394832976,1764004265936,-500.0,0.00035616,8]
[394832977,1764004265945,-500.0,0.00035616,8]
[394832978,1764004265954,-500.0,0.00035616,8]
[394832979,1764004265963,-503.06174548,0.00035616,8]
[394832980,1764004265972,-500.0,0.00035616,8]
[394832981,1764004265981,-500.0,0.00035616,8]
[394832982,1764004265991,-500.0,0.00035616,8]
[394832983,1764004266000,-500.0,0.00035616,8]
[394832984,1764004266009,-505.37558662,0.00035616,8]
[394832985,1764004266018,-500.0,0.00035616,8]
[394832986,1764004266027,-500.0,0.00035616,8]
[394832987,1764004266037,-500.0,0.00035616,8]
[394832988,1764004266046,-500.0,0.00035616,8]
[394832989,1764004266055,-500.0,0.00035616,8]
[394832990,1764004266064,-500.0,0.00035616,8]
[394832991,1764004266073,-500.0,0.00035616,8]
[394832992,1764004266082,-400.0,0.00035616,8]
[394832993,1764004266091,-500.0,0.00035616,8]
[394832994,1764004266100,-409.63034791,0.00035616,8]
[394832995,1764004266109,-500.0,0.00035616,8]
[394832996,1764004266118,-500.0,0.00035616,8]
[394832997,1764004266127,-500.0,0.00035616,8]
[394832998,1764004266137,-500.0,0.00035616,8]
[394832999,1764004266147,-500.0,0.00035616,8]
[394833000,1764004266156,-500.0,0.00035616,8]
[394833001,1764004266165,-500.0,0.00035616,8]
[394833002,1764004266174,-500.0,0.00035616,8]
[394833003,1764004266184,-500.0,0.00035616,8]
[394833004,1764004266194,-500.0,0.00035616,8]
[394833005,1764004266203,-500.0,0.00035616,8]
[394833006,1764004266212,-510.66248204,0.00035616,8]
[394833007,1764004266221,-500.0,0.00035616,8]
[394833008,1764004266230,-500.0,0.00035616,8]
[394833009,1764004266239,-500.0,0.00035616,8]
[394833010,1764004266248,-500.0,0.00035616,8]
[394833011,1764004266258,-500.0,0.00035616,8]
[394833012,1764004266268,-513.64757694,0.00035616,8]
[394833013,1764004266277,-500.0,0.00035616,8]